bitfinex/quotes_SOLUSD_20250823
["timestamp","ask_amount","ask_price","bid_price","bid_amount"]
[1755990923730,7.04852652,204.64,204.62,51.90559401]
[1755990924140,7.04852652,204.64,204.63,0.65]
[1755990925209,7.04852652,204.66,204.63,0.65]
[1755990925409,7.04852652,204.68,204.64,51.25559401]
[1755990925649,7.04852652,204.68,204.65,0.65]
[1755990925849,7.04852652,204.68,204.66,38.31]
[1755990926423,7.04852652,204.68,204.66,37.66]
[1755990926913,0.06,204.67,204.66,37.66]
[1755990928342,4.5694242,204.67,204.66,37.66]
[1755990929427,0.06,204.67,204.66,38.37]
[1755990929748,4.5694242,204.67,204.66,38.37]
[1755990932732,4.5694242,204.67,204.66,37.66]
[1755990935553,5.2394242,204.67,204.66,37.66]
[1755990935855,5.2394242,204.67,204.65,37.66]
[1755990936146,5.1794242,204.66,204.65,37.66]
[1755990936343,4.5094242,204.66,204.65,37.66]
[1755990936544,0.06,204.67,204.65,37.66]
[1755990936757,4.5094242,204.66,204.65,37.66]
[1755990942266,4.5094242,204.66,204.64,37.64]
[1755990942450,4.5094242,204.66,204.64,38.35]
[1755990945950,0.06,204.67,204.66,995.4905758]
[1755990946269,4.5694242,204.67,204.66,995.4905758]
[1755990949770,5.2394242,204.67,204.66,995.4905758]
[1755990949949,10.12533811,204.67,204.66,995.4905758]
[1755990955953,9.45533811,204.67,204.66,995.4905758]
[1755990956475,4.5694242,204.67,204.66,995.4905758]
[1755990957666,0.06,204.67,204.66,996.2105758]
[1755990959976,0.06,204.67,204.66,996.2405758]
[1755990960985,4.5694242,204.67,204.66,996.2405758]
[1755990965798,0.06,204.67,204.66,996.2405758]
[1755990966086,0.06,204.67,204.66,1009.83616981]
[1755990966791,0.06,204.67,204.66,1019.51606979]
[1755990969078,0.06,204.67,204.66,1057.13606979]
[1755990970393,1e-08,204.67,204.66,1057.13606979]
[1755990970597,1e-08,204.67,204.66,1083.13606979]
[1755990973379,1e-08,204.69,204.68,13.59559401]
[1755990973587,1e-08,204.69,204.68,60.89501655]
[1755990974067,1e-08,204.69,204.68,61.61501655]
[1755990984502,1e-08,204.71,204.69,39.87991715]
[1755990984712,0.68,204.79,204.72,0.28432314]
[1755990984897,0.68,204.77,204.72,55.98934135]
[1755990985079,0.68,204.77,204.72,56.70934135]
[1755990985418,4.5094242,204.81,204.72,56.70934135]
[1755990985419,0.68,204.78,204.72,56.70934135]
[1755990986584,0.68,204.78,204.72,61.59406194]
[1755990987720,80.5,204.87,204.72,61.59406194]
[1755990987930,0.7,204.8,204.73,18.38934135]
[1755990988222,0.7012185,204.9,204.78,0.28432314]
[1755990988223,0.7,204.82,204.78,0.28432314]
[1755990988379,0.7,204.82,204.8,13.59559401]
[1755990988578,0.7,204.82,204.81,51.19559401]
[1755990992717,5.2094242,204.82,204.79,37.58]
[1755990992912,4.0094242,204.8,204.79,37.58]
[1755990993220,4.7094242,204.8,204.79,37.58]
[1755990994507,7.7378831,204.8,204.79,37.58]
[1755990995710,0.7,204.8,204.79,37.58]
[1755990996008,7.7378831,204.8,204.79,37.58]
[1755990997528,0.7,204.8,204.79,37.58]
[1755990997696,7.7378831,204.8,204.79,37.58]
[1755990998326,0.7,204.8,204.79,37.58]
[1755990998511,7.7378831,204.8,204.79,37.58]
[1755990999405,0.7,204.8,204.79,37.58]
[1755990999605,7.7378831,204.8,204.79,37.58]
[1755991000008,7.7378831,204.8,204.75,14.28559401]
[1755991000212,0.7,204.79,204.77,13.59559401]
[1755991000415,7.7378831,204.79,204.77,13.59559401]
[1755991000616,7.7378831,204.79,204.78,37.58]
[1755991001415,0.7,204.79,204.78,37.58]
[1755991004128,7.7378831,204.8,204.78,37.58]
[1755991005424,0.7,204.79,204.78,37.58]
[1755991005833,0.7,204.81,204.78,37.58]
[1755991006016,7.7378831,204.81,204.78,37.58]
[1755991007332,7.0978831,204.82,204.79,14.28559401]
[1755991007630,7.7978831,204.82,204.79,14.28559401]
[1755991008044,0.06,204.82,204.81,13.59559401]
[1755991008225,0.06,204.82,204.81,14.28559401]
[1755991009842,0.06,204.82,204.81,13.59559401]
[1755991010227,0.06,204.82,204.81,14.28559401]
[1755991012947,0.06,204.82,204.81,21.60780025]
[1755991013122,0.06,204.82,204.81,26.49037434]
[1755991013636,0.06,204.82,204.81,52.97863174]
[1755991014218,0.06,204.82,204.81,45.94074864]
[1755991014521,0.06,204.82,204.81,50.4394698]
[1755991015534,0.06,204.82,204.81,24.4394698]
[1755991016049,1e-08,204.85,204.84,39.59559401]
[1755991016229,0.06,204.87,204.85,0.28432314]
[1755991016548,0.06,204.87,204.84,81.93863831]
[1755991016549,290.8,205.07,204.89,39.59559401]
[1755991016724,7.02477628,205.02,204.89,84.46469343]
[1755991016926,0.7,205.01,204.89,85.15469343]
[1755991017124,0.7,205.01,204.89,90.0353611]
[1755991017849,0.67,205.01,204.89,90.0353611]
[1755991018154,0.67,205.0,204.89,90.0353611]
[1755991018857,0.67,204.97,204.89,45.45058482]
[1755991019054,0.67,204.97,204.89,52.4753611]
[1755991019248,0.67,204.96,204.89,90.0353611]
[1755991020053,0.67,204.96,204.89,52.4753611]
[1755991020368,0.67,204.94,204.89,85.01253186]
[1755991020570,0.67,204.94,204.89,85.15469343]
[1755991020855,0.67,204.94,204.89,90.0353611]
[1755991023973,0.67,204.94,204.89,85.15469343]
[1755991024273,0.67,204.94,204.89,90.0353611]
[1755991026558,0.06,204.93,204.89,47.59469343]
[1755991026870,0.73,204.93,204.89,85.16469343]
[1755991027048,0.73,204.93,204.89,47.62469343]
[1755991027361,0.73,204.93,204.89,90.0453611]
[1755991027949,0.06,204.93,204.89,90.0453611]
[1755991028554,0.6612185,204.9,204.89,90.0453611]
[1755991028763,0.6612185,204.9,204.89,83.02058482]
[1755991028961,0.6612185,204.9,204.89,90.0453611]
[1755991034952,0.06,204.93,204.89,90.0453611]
[1755991034953,0.06,204.93,204.92,39.59559401]
[1755991035174,0.06,204.93,204.92,84.44469343]
[1755991035368,0.06,204.93,204.92,85.16469343]
[1755991036157,0.06,204.93,204.92,78.13991715]
[1755991036356,0.06,204.93,204.92,85.16469343]
[1755991036687,0.06,204.93,204.92,90.02949871]
[1755991037263,0.06,204.93,204.92,94.90945186]
[1755991037760,0.06,204.93,204.92,82.9998703]
[1755991038067,0.06,204.93,204.92,90.02464658]
[1755991039356,0.06,204.93,204.92,90.52464658]
[1755991040166,0.06,204.93,204.92,225.12464658]
[1755991040751,0.06,204.93,204.92,218.0998703]
[1755991040957,0.06,204.93,204.92,225.12464658]
[1755991041675,0.06,204.93,204.92,229.91373695]
[1755991043262,0.06,204.93,204.92,192.39373695]
[1755991043476,0.06,204.93,204.92,229.91373695]
[1755991043991,0.06,204.95,204.93,13.87991715]
[1755991044290,0.06,204.95,204.94,84.42469343]
[1755991044500,0.06,204.95,204.94,85.14469343]
[1755991045484,0.06,204.95,204.94,90.02417035]
[1755991046060,0.67,205.03,204.98,39.59559401]
[1755991046363,210.3,205.22,204.95,0.28432314]
[1755991046364,7.02477628,205.1,205.04,0.28432314]
[1755991046688,17.05831882,205.18,205.07,0.28432314]
[1755991046872,7.02477628,205.1,205.09,13.59559401]
[1755991047209,0.67,205.1,205.09,13.59559401]
[1755991047416,7.69477628,205.1,205.09,13.59559401]
[1755991047681,12.57049027,205.1,205.01,13.59559401]
[1755991047886,7.02477628,205.05,205.02,37.52]
[1755991048081,7.71477628,205.04,205.03,13.59559401]
[1755991048604,7.71477628,205.04,205.03,37.52]
[1755991050566,7.71477628,205.04,205.0,0.28432314]
[1755991050771,7.02477628,205.03,205.02,13.59559401]
[1755991050971,7.71477628,205.03,205.02,51.11559401]
[1755991052161,0.69,205.03,205.02,51.11559401]
[1755991052359,7.71477628,205.03,205.02,51.11559401]
[1755991053060,0.69,205.03,205.02,51.11559401]
[1755991053262,7.71477628,205.03,205.02,51.11559401]
[1755991055459,0.69,205.03,205.02,51.11559401]
[1755991055662,7.71477628,205.03,205.02,51.11559401]
[1755991056291,0.06,205.09,205.02,52.06991715]
[1755991056491,0.69,205.06,205.03,0.28432314]
[1755991056696,0.69,205.06,205.05,13.59559401]
[1755991058579,0.69,205.08,205.05,13.59559401]
[1755991058782,0.69,205.07,205.06,51.11559401]
[1755991060302,7.08477628,205.09,205.08,0.28432314]
[1755991060303,0.06,205.09,205.08,0.28432314]
[1755991060476,0.06,205.09,205.08,59.09469343]
[1755991060677,0.06,205.09,205.08,63.97083932]
[1755991061982,0.06,205.09,205.08,56.94606304]
[1755991062176,0.75,205.09,205.03,0.67]
[1755991062397,0.75,205.09,205.04,58.18037029]
[1755991062601,0.06,205.09,205.05,7.16693785]
[1755991062786,0.06,205.09,205.08,7.30909942]
[1755991062988,0.06,205.09,205.08,44.96909942]
[1755991063378,0.06,205.09,205.08,58.56469343]
[1755991063700,0.06,205.09,205.08,59.23469343]
[1755991063905,0.06,205.09,205.08,14.54991715]
[1755991064207,0.06,205.09,205.08,52.20991715]
[1755991064583,0.06,205.09,205.08,64.11083932]
[1755991065110,0.06,205.09,205.08,26.45083932]
[1755991065291,0.06,205.09,205.08,64.11083932]
[1755991066008,0.06,205.09,205.08,52.20991715]
[1755991066300,0.06,205.09,205.08,64.11083932]
[1755991067403,0.06,205.09,205.08,14.54991715]
[1755991067720,0.06,205.09,205.08,52.20991715]
[1755991068030,0.06,205.09,205.08,51.53991715]
[1755991068326,0.06,205.09,205.08,13.59559401]
[1755991068487,7.77477628,205.09,205.08,51.27559401]
[1755991068689,7.77477628,205.09,205.08,51.55991715]
[1755991068890,7.77477628,205.09,205.08,13.59559401]
[1755991069115,7.77477628,205.09,205.08,37.68]
[1755991069297,7.77477628,205.09,205.02,19.14312583]
[1755991069505,7.02477628,205.07,205.05,0.28432314]
[1755991069694,7.02477628,205.07,205.06,51.27559401]
[1755991070011,7.71477628,205.07,205.06,13.59559401]
[1755991070211,0.69,205.07,205.06,51.27559401]
[1755991070420,7.71477628,205.07,205.06,51.27559401]
[1755991070591,0.69,205.07,205.06,51.27559401]
[1755991071085,0.69,205.07,205.06,13.59559401]
[1755991071289,0.69,205.07,205.06,51.27559401]
[1755991075001,0.69,205.07,205.06,13.59559401]
[1755991075219,0.69,205.07,205.06,51.23559401]
[1755991076420,7.02477628,205.08,205.07,13.59559401]
[1755991076795,7.71477628,205.08,205.07,13.59559401]
[1755991081411,7.08477628,205.09,205.07,13.59559401]
[1755991081614,0.06,205.09,205.08,51.21559401]
[1755991082196,0.06,205.09,205.08,59.18469343]
[1755991082518,0.06,205.09,205.08,52.15991715]
[1755991083020,0.06,205.09,205.08,57.03606304]
[1755991084234,0.06,205.09,205.08,19.41606304]
[1755991084728,0.06,205.09,205.08,57.03606304]
[1755991089825,0.06,205.09,205.08,57.01606304]
[1755991092015,6.14477628,205.12,205.1,13.59559401]
[1755991092216,6.14477628,205.12,205.11,51.17559401]
[1755991093518,0.75,205.14,205.11,51.17559401]
[1755991093519,0.06,205.14,205.12,13.59559401]
[1755991093836,7.71477628,205.13,205.09,0.14216157]
[1755991094035,0.69,205.12,205.11,13.59559401]
[1755991094241,7.71477628,205.12,205.11,13.59559401]
[1755991094820,0.69,205.12,205.11,13.59559401]
[1755991095035,7.71477628,205.12,205.11,13.59559401]
[1755991095642,7.71477628,205.12,205.09,0.28432314]
[1755991095941,7.71477628,205.12,205.11,13.59559401]
[1755991096137,7.71477628,205.12,205.11,51.33559401]
[1755991098046,7.02477628,205.12,205.11,51.33559401]
[1755991099023,0.06,205.13,205.12,0.14216157]
[1755991099240,0.06,205.13,205.12,7.96909942]
[1755991100033,0.06,205.13,205.12,59.30469343]
[1755991100233,0.06,205.13,205.12,14.53991715]
[1755991100434,0.06,205.13,205.12,59.30469343]
[1755991100634,0.06,205.13,205.12,14.53991715]
[1755991100848,0.06,205.13,205.12,59.30469343]
[1755991101758,0.06,205.13,205.12,64.17988843]
[1755991101930,0.06,205.13,205.12,57.15511215]
[1755991102134,0.06,205.13,205.12,13.87991715]
[1755991102328,0.06,205.13,205.12,51.47775558]
[1755991102729,0.06,205.13,205.04,12.19215574]
[1755991102730,7.77477628,205.13,205.07,7.68477628]
[1755991103039,7.02477628,205.12,205.09,0.28432314]
[1755991103350,7.71477628,205.12,205.11,13.59559401]
[1755991103556,7.02477628,205.12,205.11,13.59559401]
[1755991104141,7.08477628,205.13,205.11,13.59559401]
[1755991104327,7.08477628,205.13,205.12,37.9]
[1755991104533,7.77477628,205.13,205.12,37.9]
[1755991105349,7.77477628,205.13,205.12,37.88]
[1755991106261,7.08477628,205.13,205.12,37.88]
[1755991106458,7.77477628,205.13,205.12,37.88]
[1755991106674,7.08477628,205.13,205.12,37.88]
[1755991107250,7.77477628,205.13,205.12,37.88]
[1755991108559,0.06,205.13,205.12,37.86]
[1755991108761,0.06,205.13,205.09,0.95432314]
[1755991109071,7.08477628,205.13,205.11,13.59559401]
[1755991109267,7.08477628,205.13,205.12,37.84]
[1755991111248,0.06,205.13,205.12,52.10559401]
[1755991111455,0.06,205.13,205.12,52.38991715]
[1755991112253,0.06,205.13,205.12,51.43559401]
[1755991112564,0.06,205.13,205.12,51.41559401]
[1755991112565,7.74477628,205.13,205.12,51.41559401]
[1755991112760,7.08477628,205.13,205.12,51.41559401]
[1755991114848,7.74477628,205.13,205.12,51.41559401]
[1755991115050,7.74477628,205.13,205.12,13.59559401]
[1755991115264,7.74477628,205.13,205.12,51.39559401]
[1755991115671,7.08477628,205.13,205.12,51.39559401]
[1755991116189,0.06,205.13,205.12,51.39559401]
[1755991117683,0.06,205.13,205.12,38.47]
[1755991118180,0.06,205.13,205.12,37.8]
[1755991121575,0.06,205.13,205.11,0.03]
[1755991121756,0.06,205.13,205.12,37.78]
[1755991128286,0.06,205.13,205.12,59.07037029]
[1755991128483,0.06,205.13,205.12,59.35469343]
[1755991129684,0.06,205.13,205.12,64.22988843]
[1755991129886,0.06,205.13,205.12,52.32991715]
[1755991130087,0.06,205.13,205.12,38.45]
[1755991130398,0.06,205.13,205.12,52.32991715]
[1755991131195,0.06,205.13,205.12,52.26991715]
[1755991131792,0.06,205.13,205.12,14.54991715]
[1755991131995,0.06,205.13,205.12,52.26991715]
[1755991132987,0.06,205.13,205.11,0.03]
[1755991133197,0.06,205.13,205.12,37.7]
[1755991133986,7.08477628,205.13,205.12,37.7]
[1755991135367,0.06,205.13,205.12,37.7]
[1755991135573,0.06,205.13,205.12,38.37]
[1755991135775,0.06,205.13,205.12,52.24991715]
[1755991136402,0.06,205.13,205.12,51.27559401]
[1755991139499,0.06,205.13,205.12,13.59559401]
[1755991139689,7.08477628,205.13,205.12,37.66]
[1755991140093,0.06,205.13,205.12,37.66]
[1755991140483,7.08477628,205.13,205.12,37.66]
[1755991140686,7.08477628,205.13,205.11,0.03]
[1755991140884,0.06,205.13,205.12,37.66]
[1755991141086,7.08477628,205.13,205.12,37.66]
[1755991141589,0.06,205.13,205.12,37.66]
[1755991143837,7.75477628,205.13,205.11,0.03]
[1755991144045,7.69477628,205.12,205.11,0.03]
[1755991144629,26.0,205.09,205.08,0.03]
[1755991144829,40.04955256,205.09,205.08,0.03]
[1755991145119,33.69477628,205.09,205.08,0.03]
[1755991146245,38.57068441,205.09,205.08,0.03]
[1755991148642,31.54590813,205.09,205.08,0.03]
[1755991148943,7.02477628,205.09,205.08,0.03]
[1755991149326,7.69477628,205.09,205.08,0.03]
[1755991149937,12.57068441,205.09,205.08,0.03]
[1755991150523,57.23546069,205.09,205.08,0.03]
[1755991150729,12.57068441,205.09,205.08,0.03]
[1755991153453,5.54590813,205.09,205.08,0.03]
[1755991153637,11.90068441,205.09,205.08,0.03]
[1755991155933,12.57068441,205.09,205.08,0.03]
[1755991160548,19.59546069,205.09,205.07,0.03]
[1755991160738,51.68955256,205.08,205.07,0.03]
[1755991160938,52.35955256,205.08,205.07,0.03]
[1755991161357,57.23569845,205.08,205.07,0.03]
[1755991164570,50.21092217,205.08,205.07,0.03]
[1755991166667,43.18614589,205.08,205.07,0.03]
[1755991166854,50.21092217,205.08,205.07,0.03]
[1755991167880,50.21092217,205.08,205.03,0.03]
[1755991167881,26.0,205.06,205.03,0.03]
[1755991168082,7.02477628,205.04,205.03,0.03]
[1755991168454,7.68477628,205.04,205.03,0.03]
[1755991168849,12.56187343,205.04,205.03,0.03]
[1755991171069,70.64477628,205.06,205.03,0.74]
[1755991171255,26.0,205.04,205.03,0.74]
[1755991171451,42.47638367,205.07,205.03,7.76477628]
[1755991171681,26.0,205.06,205.04,7.73477628]
[1755991171881,4.87611832,205.09,205.05,0.71]
[1755991172186,26.0,205.07,205.05,0.71]
[1755991172986,4.87571372,205.1,205.05,7.73477628]
[1755991173170,26.0,205.08,205.05,7.73477628]
[1755991173369,26.0,205.08,205.06,0.71]
[1755991174860,0.06,205.12,205.07,20.62037029]
[1755991175062,0.06,205.12,205.09,7.02477628]
[1755991175278,26.06,205.12,205.09,7.02477628]
[1755991175587,26.0,205.11,205.1,0.71]
[1755991176683,0.06,205.12,205.1,0.71]
[1755991176987,26.0,205.11,205.1,0.71]
[1755991178885,0.06,205.12,205.1,0.71]
[1755991179097,26.0,205.11,205.1,0.71]
[1755991179793,0.06,205.12,205.1,0.71]
[1755991180022,26.06,205.12,205.1,0.71]
[1755991180998,26.0,205.11,205.08,7.02477628]
[1755991181367,0.06,205.12,205.1,7.02477628]
[1755991181666,0.06,205.12,205.11,20.62037029]
[1755991181891,0.06,205.12,205.11,21.33037029]
[1755991182683,0.06,205.12,205.11,21.61469343]
[1755991183294,0.06,205.12,205.11,26.49012612]
[1755991186984,0.06,205.12,205.11,21.61469343]
[1755991188184,0.06,205.12,205.11,0.71]
[1755991192490,0.06,205.12,205.11,7.73477628]
[1755991193683,0.06,205.12,205.11,0.71]
[1755991193885,0.06,205.12,205.11,7.73477628]
[1755991196104,0.06,205.12,205.11,0.71]
[1755991198005,0.06,205.12,205.11,7.73477628]
[1755991198715,0.06,205.12,205.1,0.28432314]
[1755991198887,0.77,205.12,205.1,0.28432314]
[1755991199709,0.77,205.12,205.05,0.69]
[1755991199710,0.71,205.11,205.05,0.69]
[1755991199888,0.71,205.11,205.06,58.18037029]
[1755991200094,0.71,205.11,205.07,0.69]
[1755991200911,7.73477628,205.11,205.07,38.25]
[1755991201516,0.06,205.12,205.08,20.90469343]
[1755991201898,0.06,205.12,205.09,0.69]
[1755991205918,0.06,205.12,205.08,20.90469343]
[1755991206101,0.06,205.12,205.09,37.56]
[1755991206616,0.06,205.12,205.08,58.46469343]
[1755991206794,0.77,205.12,205.08,0.69]
[1755991207116,7.73477628,205.11,205.09,37.56]
[1755991207307,7.73477628,205.11,205.06,45.27477628]
[1755991207512,0.71,205.11,205.07,0.69]
[1755991207710,7.73477628,205.11,205.07,0.69]
[1755991208512,7.02477628,205.08,205.04,0.97432314]
[1755991208719,7.73477628,205.07,205.03,37.59]
[1755991208899,0.71,205.07,205.03,38.28]
[1755991209098,7.02477628,205.08,205.04,0.69]
[1755991209412,7.73477628,205.08,205.04,0.69]
[1755991209614,7.02477628,205.1,205.05,7.02477628]
[1755991209985,0.71,205.09,205.04,45.27477628]
[1755991210191,7.73477628,205.09,205.04,38.25]
[1755991210621,0.71,205.09,205.05,0.69]
[1755991211519,7.73477628,205.08,205.03,13.62559401]
[1755991211692,7.73477628,205.08,205.04,0.03]
[1755991211896,7.73477628,205.08,205.04,0.72]
[1755991212298,0.71,205.08,205.04,0.72]
[1755991212500,7.02477628,205.09,205.04,0.72]
[1755991212718,7.02477628,205.1,205.04,7.74477628]
[1755991212904,0.71,205.09,205.04,7.74477628]
[1755991213417,7.73477628,205.09,205.04,0.72]
[1755991215093,7.73477628,205.08,205.04,0.72]
[1755991218118,7.02477628,205.08,205.04,0.72]
[1755991218324,33.02477628,205.11,205.05,20.62037029]
[1755991218506,33.02477628,205.11,205.06,0.69]
[1755991218819,33.73477628,205.11,205.06,0.69]
[1755991219243,0.71,205.1,205.06,0.69]
[1755991221309,7.73477628,205.1,205.06,0.69]
[1755991221932,0.71,205.1,205.06,0.69]
[1755991222231,7.73477628,205.1,205.06,0.69]
[1755991222534,33.02477628,205.11,205.07,0.69]
[1755991222730,33.73477628,205.11,205.07,0.69]
[1755991223025,33.73477628,205.11,205.06,7.02477628]
[1755991223229,0.71,205.1,205.06,7.71477628]
[1755991223735,33.02477628,205.11,205.07,0.69]
[1755991224118,33.73477628,205.11,205.07,0.69]
[1755991225331,33.02477628,205.11,205.07,0.69]
[1755991225633,0.71,205.1,205.05,45.27477628]
[1755991225808,7.73477628,205.1,205.05,45.27477628]
[1755991226210,7.73477628,205.1,205.06,0.69]
[1755991232741,0.71,205.09,205.04,20.93469343]
[1755991232918,0.71,205.09,205.05,38.25]
[1755991233537,7.02477628,205.1,205.06,0.69]
[1755991233937,7.73477628,205.1,205.06,0.69]
[1755991234242,0.71,205.1,205.06,0.69]
[1755991234452,7.73477628,205.1,205.06,0.69]
[1755991234624,7.02477628,205.09,205.06,0.69]
[1755991236447,0.71,205.1,205.06,0.69]
[1755991236919,7.73477628,205.1,205.06,0.69]
[1755991237322,7.73477628,205.1,205.05,37.56]
[1755991237323,0.71,205.09,205.05,37.56]
[1755991237571,0.71,205.08,205.06,37.56]
[1755991237923,7.73477628,205.1,205.06,37.56]
[1755991238351,0.71,205.09,205.06,37.56]
[1755991238723,0.71,205.09,205.06,38.25]
[1755991238923,0.71,205.09,205.06,37.56]
[1755991239559,0.71,205.09,205.05,0.69]
[1755991239775,0.71,205.09,205.06,37.56]
[1755991239978,0.71,205.09,205.05,0.69]
[1755991240251,0.71,205.09,205.06,37.56]
[1755991240549,5.20132594,205.1,205.06,38.25]
[1755991243455,5.20132594,205.1,205.06,0.69]
[1755991243641,5.20132594,205.1,205.06,38.25]
[1755991245088,4.49132594,205.09,205.06,37.56]
[1755991245270,4.49132594,205.09,205.06,38.25]
[1755991246803,5.26132594,205.1,205.06,38.25]
[1755991247310,5.26132594,205.1,205.07,0.69]
[1755991247581,4.55132594,205.1,205.07,0.69]
[1755991249182,5.26132594,205.1,205.07,0.69]
[1755991251185,4.55132594,205.1,205.07,0.69]
[1755991252072,5.26132594,205.1,205.07,0.69]
[1755991252781,4.55132594,205.1,205.07,0.69]
[1755991254298,5.26132594,205.1,205.07,0.69]
[1755991256604,4.49132594,205.09,205.05,0.72]
[1755991256810,4.49132594,205.09,205.06,38.25]
[1755991257401,0.77,205.1,205.06,0.69]
[1755991257710,4.49132594,205.09,205.06,38.25]
[1755991258797,4.49132594,205.09,205.07,0.69]
[1755991259092,4.49132594,205.09,205.06,37.56]
[1755991259302,4.49132594,205.09,205.06,38.25]
[1755991259815,4.49132594,205.09,205.07,0.69]
[1755991260405,4.49132594,205.09,205.05,0.03]
[1755991260406,5.19132594,205.08,205.05,0.03]
[1755991260607,4.49132594,205.06,205.05,0.03]
[1755991261203,5.19132594,205.06,205.05,0.03]
[1755991262913,10.06794741,205.06,205.05,0.03]
[1755991263286,5.57662147,205.06,205.05,0.03]
[1755991263490,10.06794741,205.06,205.05,0.03]
[1755991265514,5.57662147,205.06,205.05,0.03]
[1755991265675,10.06794741,205.06,205.05,0.03]
[1755991265881,5.57662147,205.06,205.05,0.03]
[1755991266218,10.06794741,205.06,205.05,0.03]
[1755991271414,5.57662147,205.06,205.05,0.03]
[1755991271592,4.49132594,205.06,205.05,0.03]
[1755991272520,123.63641443,205.07,205.05,0.03]
[1755991272735,4.49132594,205.06,205.05,0.03]
[1755991274739,9.36794741,205.06,205.05,0.03]
[1755991275816,10.06794741,205.06,205.05,0.03]
[1755991277906,5.57662147,205.06,205.05,0.03]
[1755991278313,10.06794741,205.06,205.05,0.03]
[1755991279021,10.12794741,205.06,205.05,0.03]
[1755991280423,47.68794741,205.06,205.05,0.03]
[1755991281533,10.12794741,205.06,205.05,0.03]
[1755991281832,47.68794741,205.06,205.05,0.03]
[1755991282131,42.11132594,205.06,205.05,0.72]
[1755991282307,0.06,205.06,205.05,0.03]
[1755991282509,4.55132594,205.06,205.05,0.03]
[1755991282909,0.06,205.06,205.05,0.03]
[1755991283108,9.42794741,205.06,205.05,0.03]
[1755991283802,10.12794741,205.06,205.05,0.03]
[1755991284542,9.42794741,205.06,205.05,0.03]
[1755991284730,68.11132594,205.06,205.05,0.72]
[1755991284912,30.55132594,205.06,205.05,0.72]
[1755991285107,30.55132594,205.06,205.05,0.03]
[1755991285437,26.06,205.06,205.05,0.72]
[1755991285608,0.06,205.06,205.05,0.72]
[1755991286734,0.06,205.06,205.05,0.03]
[1755991286925,5.25132594,205.06,205.05,0.03]
[1755991287326,68.81132594,205.06,205.05,0.03]
[1755991287513,68.11132594,205.06,205.05,0.03]
[1755991288036,72.98794741,205.06,205.05,0.03]
[1755991288615,63.62,205.06,205.05,0.74]
[1755991288820,30.55132594,205.06,205.05,0.74]
[1755991289435,36.10794741,205.06,205.05,0.03]
[1755991289649,10.10794741,205.06,205.05,0.03]
[1755991291633,5.61662147,205.06,205.05,0.03]
[1755991291942,10.10794741,205.06,205.05,0.03]
[1755991293251,0.06,205.06,205.05,0.74]
[1755991293544,26.06,205.06,205.05,0.74]
[1755991298659,26.06,205.06,205.05,0.03]
[1755991298660,37.95600121,205.06,205.05,0.03]
[1755991298830,38.63600121,205.06,205.05,0.03]
[1755991299950,37.95600121,205.06,205.05,0.03]
[1755991304253,33.07937974,205.06,205.05,0.03]
[1755991307251,38.63600121,205.06,205.05,0.03]
[1755991307563,37.95600121,205.06,205.05,0.03]
[1755991307866,38.40600121,205.06,205.05,0.03]
[1755991308656,26.06,205.06,205.05,0.03]
[1755991308863,33.07937974,205.06,205.05,0.03]
[1755991309431,37.95600121,205.06,205.05,0.03]
[1755991309739,33.07937974,205.06,205.05,0.03]
[1755991309939,37.95600121,205.06,205.05,0.03]
[1755991311243,0.06,205.06,205.05,0.03]
[1755991311470,0.06,205.06,205.05,0.74]